Cogmind - Beta 13 *** ADVENTURER MODE // 2024.03.18 @ 20:10:12 Player: skye Result: Self-destructed Performance ------------- Evolutions (1) 500 Regions Visited (2) 400 Robots Destroyed (22) 110 Value Destroyed (596) 596 Prototype IDs (4) 80 Alien Tech Used (0) 0 Bonus (0) 0 TOTAL SCORE: 1686 Bonus ------- None Cogmind --------- Core Integrity 174/400 Matter 275/300 Energy 80/100 System Corruption 0% Temperature Cool (6) Movement Core (50) Location -9/Materials Parts ------- > --- POWER (1) -------- (None) > --- PROPULSION (3) --- (None) > --- UTILITY (3) ------ Heat Sink > --- WEAPON (2) ------- (None) > --- INVENTORY (5) ---- Light Armor Plating Medium Laser Assault Rifle Improved Light Cannon Rocket Launcher Peak State ------------ > --- POWER ------------ Light Ion Engine > --- PROPULSION ------- Aluminum Leg Aluminum Leg Aluminum Leg > --- UTILITY ---------- Heat Sink Light Armor Plating Tractor Beam > --- WEAPON ----------- Small Laser Improved Light Cannon > --- INVENTORY -------- Improved EM Shotgun Medium Laser Small Laser Assault Rifle [Rating: 10] Favorites ----------- Power Light Ion Engine Engine Light Ion Engine Propulsion Aluminum Leg Leg Aluminum Leg Hover Unit Hover Unit Utility Tractor Beam Device Tractor Beam Storage Small Storage Unit Protection Light Armor Plating Weapon Small Laser Energy Gun Small Laser Ballistic Gun Assault Rifle Ballistic Cannon Improved Light Cannon Build | -11 -10 -9 ------- Run | Yrd Mat Mat Slots Evolved 2 | . . 2 Power . | . . . Propulsion 1 | . . 1 Utility 1 | . . 1 Weapon . | . . . Parts Attached 23 | 7 4 12 Power 4 | 1 . 3 Engine 4 | 1 . 3 Core . | . . . Reactor . | . . . Propulsion 6 | 2 1 3 Treads . | . . . Leg 4 | 2 1 1 Wheel . | . . . Hover 2 | . . 2 Flight . | . . . Utility 6 | 2 1 3 Device 4 | 1 1 2 Storage 1 | 1 . . Processor . | . . . Hackware . | . . . Protection 1 | . . 1 Artifact . | . . . Weapon 7 | 2 2 3 Energy Gun 5 | 1 2 2 Energy Cannon . | . . . Ballistic Gun 1 | 1 . . Ballistic Cannon 1 | . . 1 Launcher . | . . . Special Weapon . | . . . Impact Weapon . | . . . Slashing Weapon . | . . . Piercing Weapon . | . . . Special Melee Weapon . | . . . Unidentified Prototypes . | . . . Parts Lost 6 | . . 6 Power 1 | . . 1 Propulsion 2 | . . 2 Utility 2 | . . 2 Weapon 1 | . . 1 Highest Loss Streak 5 | . . 5 To Critical Strikes . | . . . Average Slot Usage (%) 84 | . 91 74 Engine 12 | . 14 10 Leg 22 | . 28 14 Hover 3 | . . 7 Device 18 | . 20 16 Protection 1 | . . 3 Energy Gun 18 | . 20 14 Ballistic Gun 4 | . 7 . Ballistic Cannon 2 | . . 6 Naked Turns . | . . . Heaviest Build 16 | 8 9 16 Greatest Support 30 | 20 20 30 Greatest Overweight (x) 3 | . . 3 Average Overweight (x) . | . . . Largest Inventory Capacity 8 | 8 5 5 Average Capacity 5 | 5 5 5 Most Carried 5 | 1 3 5 Average Carried 2 | . 1 4 Final Capacity 5 | 5 5 5 Final Carried 5 | 1 3 5 Class Distribution -------------------- 100% | Mutant Dominant Class ---------------- Mutant | -10/Materials Mutant | -9/Materials Resources | -11 -10 -9 ----------- Run | Yrd Mat Mat Matter Collected 517 | 276 90 151 Remotely 375 | 213 90 72 Salvage Created 766 | 81 306 379 Parts 45 | 3 17 25 Haulers Intercepted . | . . . Recyclers Shooed 1 | . 1 . Parts Field Recycled . | . . . Retrieved Matter . | . . . Parts Self-Destructed . | . . . Prevented . | . . . Kills | -11 -10 -9 ------- Run | Yrd Mat Mat Combat Hostiles Destroyed 15 | . 5 10 Guns 7 | . 4 3 Cannons 7 | . . 7 Classes Destroyed 8 | 1 4 3 Worker 2 | . 2 . Tunneler 2 | . 2 . Recycler 1 | 1 . . Watcher 2 | . 1 1 Swarmer 2 | . . 2 Grunt 8 | . 5 3 Duelist 1 | . . 1 Sentry 4 | . . 4 Best Kill Streak 5 | 1 4 5 Combat Bots Only 4 | . 3 4 Max Kills in Single Turn 1 | 1 1 1 Gunslinging . | . . . Exploded . | . . . Melee . | . . . Uniques/NPCs Destroyed . | . . . Combat | -11 -10 -9 -------- Run | Yrd Mat Mat Hostile Shots Fired 117 | . 40 77 Missed 42 | . 20 22 Damage Taken 745 | . 190 555 Core 293 | . 67 226 Absorbed by Shields . | . . . Ignored by Resistances 223 | . 61 162 Core Remaining (%) 86 | 100 73 . Volleys Fired 64 | 2 30 32 Largest 2 | 2 2 2 Hottest 95 | 60 80 95 Shots Fired 120 | 4 60 56 Gun 99 | 4 60 35 Cannon 21 | . . 21 Launcher . | . . . Special . | . . . Kinetic 43 | 2 20 21 Thermal 77 | 2 40 35 Explosive . | . . . Electromagnetic . | . . . Robot Hit Streak 19 | 1 19 15 Robot Miss Streak 5 | 1 2 5 Penetration Max . | . . . Secondary Targets 2 | . 2 . Max Gunslinging Chain 1 | . 1 . Shots Hit Robots 90 | 2 48 40 Core Hits 37 | 2 16 19 Critical Kills . | . . . Critical Parts Destroyed . | . . . Critical Strikes 1 | . . 1 Burn 1 | . . 1 Melee Attacks . | . . . Impact . | . . . Slashing . | . . . Piercing . | . . . Sneak Attacks . | . . . Combat Hostiles . | . . . Follow-up Attacks . | . . . Damage Inflicted 1249 | 24 562 663 Guns 886 | 24 562 300 Cannons 358 | . . 358 Explosions . | . . . Melee . | . . . Ramming 5 | . . 5 Kinetic 538 | . 180 358 Thermal 706 | 24 382 300 Explosive . | . . . Electromagnetic . | . . . Impact . | . . . Slashing . | . . . Piercing . | . . . Highest Corruption . | . . . Average Corruption . | . . . Corruption Purged . | . . . Corruption Blocked . | . . . Overload Shots . | . . . Overflow Damage . | . . . Projectiles . | . . . Explosions . | . . . Melee . | . . . Knockbacks 2 | . . 2 Impact . | . . . Kinetic 2 | . . 2 Secondary . | . . . Self-Inflicted Damage 2 | . . 2 Shots . | . . . Rammed 1 | . . 1 Targets Rammed 1 | . . 1 Kicked . | . . . Crushed . | . . . Highest Temperature 144 | . 144 45 Average Temperature 36 | . 59 10 Received Heat Transfer 285 | . 129 156 Siege Activations . | . . . Robots Corrupted . | . . . Combat Hostiles . | . . . Parts Fried . | . . . Impact Corruptions . | . . . Robots Melted 1 | . 1 . Combat Hostiles 1 | . 1 . Parts Melted 2 | . 2 . Heat Transferred 1683 | 50 850 783 Parts Sabotaged . | . . . Parts Stolen . | . . . Parts Stripped . | . . . Power Chain Reactions . | . . . Alert | -11 -10 -9 ------- Run | Yrd Mat Mat Peak Influence 331 | 5 157 331 Initial 4 | . 2 4 Average 87 | 3 76 121 Maximum Alert Level 1 | . . 1 Low Security (%) 85 | 100 100 61 Level 1 14 | . . 38 Level 2 . | . . . Level 3 . | . . . Level 4 . | . . . Level 5 . | . . . High Security . | . . . Max Security . | . . . Squads Dispatched 1 | . . 1 Investigation . | . . . Extermination . | . . . Reinforcement 1 | . . 1 Assault . | . . . Garrison . | . . . Intercept . | . . . Searches Triggered . | . . . Construction Impeded . | . . . Haulers Reinforced . | . . . Active Scanning Responses . | . . . Cargo Convoy Interrupts . | . . . Stealth | -11 -10 -9 --------- Run | Yrd Mat Mat Distress Signals 4 | . 2 2 Communications Jammed . | . . . Distress Signals . | . . . Times Spotted 27 | . 7 20 Peak Tracking Total 7 | . 4 7 Tactical Retreats . | . . . Traps | -11 -10 -9 ------- Run | Yrd Mat Mat Traps Triggered 2 | . 2 . Indirectly . | . . . Trap Hack Attempts . | . . . Triggered . | . . . Disarmed . | . . . Reprogrammed . | . . . Reused . | . . . Traps Extracted . | . . . Installed . | . . . Triggered . | . . . Machines | -11 -10 -9 ---------- Run | Yrd Mat Mat Machines Disabled 1 | . . 1 Max in Single Turn 1 | . . 1 Machines Repaired . | . . . Machines Dismantled . | . . . Machines Sabotaged . | . . . Overloaded Fab Kills . | . . . Hacking | -11 -10 -9 --------- Run | Yrd Mat Mat Machines Accessed 6 | . 5 1 Terminals 4 | . 4 . Fabricators . | . . . Repair Stations 1 | . . 1 Recycling Units 1 | . 1 . Scanalyzers . | . . . Garrison Access . | . . . Total Hacks 15 | . 13 2 Successful 8 | . 7 1 Failed 7 | . 6 1 Catastrophic . | . . . Database Lockouts . | . . . Manual . | . . . Terminals 8 | . 8 . Fabricators . | . . . Repair Stations 2 | . . 2 Recycling Units 5 | . 5 . Scanalyzers . | . . . Garrison Access . | . . . Terminal Hacks 3 | . 3 . Prototype ID Bank 2 | . 2 . Emergency Access Points 1 | . 1 . Fabricator Hacks . | . . . Repair Station Hacks 1 | . . 1 Scan Component 1 | . . 1 Recycling Unit Hacks 4 | . 4 . Recycle Component 1 | . 1 . Process 1 | . 1 . Report Inventory 1 | . 1 . Retrieve Matter 1 | . 1 . Scanalyzer . | . . . Garrison Access Hacks . | . . . Unauthorized Hacks . | . . . Terminals . | . . . Fabricators . | . . . Repair Stations . | . . . Recycling Units . | . . . Scanalyzers . | . . . Garrison Access . | . . . Data Cores Recovered . | . . . Used . | . . . Hacking Detections 4 | . 3 1 Full Trace Events 1 | . 1 . Feedback Events . | . . . Feedback Blocked . | . . . Robot Schematics Acquired . | . . . Robots Built . | . . . Authchips . | . . . Time . | . . . Total Robot Build Rating . | . . . Part Schematics Acquired . | . . . Parts Built . | . . . Authchips . | . . . Time . | . . . Total Part Build Rating . | . . . Parts Repaired . | . . . Time . | . . . Parts Recycled 1 | . 1 . Recycled Matter 75 | . 75 . Retrieved Matter 75 | . 75 . Retrieved Components . | . . . Parts Scanalyzed . | . . . Part Schematics Acquired . | . . . Parts Damaged . | . . . Bothacking | -11 -10 -9 ------------ Run | Yrd Mat Mat Used RIF Installer . | . . . Robots Hacked . | . . . Non-combat . | . . . Combat . | . . . Robot Hacks Applied . | . . . Relay Couplers Released . | . . . Fabnet Peak Effective % . | . . . Robots Rewired . | . . . Allies Hacked . | . . . Hacks Repelled . | . . . Allies | -11 -10 -9 -------- Run | Yrd Mat Mat Total Allies . | . . . Largest Group . | . . . Highest-Rated Group . | . . . Highest-Rated Ally . | . . . Total Orders . | . . . Ally Attacks . | . . . Total Damage . | . . . Kills . | . . . Allies Corrupted . | . . . Allies Melted . | . . . Intel | -11 -10 -9 ------- Run | Yrd Mat Mat Robot Analysis Total . | . . . Derelict Logs Recovered . | . . . Drone Launches . | . . . Drone Recoveries . | . . . Exploration | -11 -10 -9 ------------- Run | Yrd Mat Mat Turns Passed 950 | 72 519 359 Spaces Moved 664 | 50 351 263 Core 15 | 6 . 9 Treads . | . . . Legs 529 | 44 351 134 Wheels . | . . . Hover 120 | . . 120 Flight . | . . . Fastest Speed 50 | 50 120 50 Average Speed 108 | 111 120 93 Slowest Speed 200 | 120 120 200 Overloaded Moves . | . . . Propulsion Burnouts . | . . . Robots Hopped . | . . . Cave-ins Triggered . | . . . Exploration Rate (%) 26 | 5 57 17 Regions Visited 2 Branch Regions . Pre-discovered Areas . | . . . Known Exits Taken . | . . . Unknown Exits Taken 2 | 1 1 . Scrap Searched . | . . . Spaces Dug . | . . . Terrain Destroyed 1 | . . 1 Melee . | . . . Projectile 1 | . . 1 AOE . | . . . Terrain Rammed . | . . . Walls Destroyed . | . . . Machines Disabled . | . . . Actions | -11 -10 -9 --------- Run | Yrd Mat Mat Total 768 | 59 387 322 Wait . | . . . Move 662 | 49 350 263 Hop . | . . . Pick Up 6 | . 2 4 Fast Attach 14 | 7 1 6 Attach 2 | . . 2 Detach 4 | 1 . 3 Swap 7 | . 3 4 Drop 8 | . 1 7 Fire 64 | 2 30 32 Melee . | . . . Ram 1 | . . 1 Kick . | . . . Crush . | . . . Escape Stasis . | . . . Rewire . | . . . Trap . | . . . Miscellaneous . | . . . Route ------- -11/Scrapyard -10/Materials (discovered 2 exits: *Mat / [*Min]) -9/Materials (discovered 1 exit: [*Mat]) History --------- Turn | Location | Event 4 | -11/Scrapyard | Discovered new exit (range 15) 73 | -11/Scrapyard | Entered Materials 305 | -10/Materials | Build established: Mutant 333 | -10/Materials | Discovered new exit (range 16) 453 | -10/Materials | Discovered new exit (range 15) 592 | -10/Materials | Entered another Materials area 592 | -9/Materials | Evolved 2 slots: Propulsion x1, Utility x1 898 | -9/Materials | Discovered new exit (range 3) 949 | -9/Materials | Core integrity fell below 50% 951 | -9/Materials | Self-destructed Last Messages --------------- Acquired 4 matter. Acquired 2 matter. T-07 Excavator is excavating. Acquired 3 matter. Acquired Rocket Launcher. Slammed into K-01 Serf. EXIT=FOUND Y-45 Defender destroyed. Dropped Sml. Laser. S-10 Pest destroyed. Hover Unit destroyed. Lgt. Ion Engine destroyed. Hover Unit destroyed. U-05 Engineer builds a Wall. Sensor Array destroyed. Imp. Ion Engine severed. L-31 Rogue suffers critical hit (Burn). Beam Rifle severed. Acquired Beam Rifle. Beam Rifle destroyed. Map ----- +----------------------------------------------------+ | | | | | | | ##########??????????????????????????? | | = #??????????????????????????? | | = #??????????????????????????? | | = #?????????####?????????????? | | "T" #?????????# #?????????????? | | #?????????## ##????????????? | | ###+################ ##########???? | | ?#% % = = #???? | | # ##### ######### ######## #???? | | + #####+##??????#####??#####/####? | | # ##! #?????????##### #? | | ##[ ## #?????????# # #? | | #=[= # #?????????# < # #? | | #% # !! #?????????# # ] #? | | %! + ! #?????????+ + ]] #? | | #=[ # #?????????# # ] #? | | #%%= # #?????????# # #? | | ###+#########?????????# # #? | | ??????????????????????# u # #? | | ??????????????????????# ##########? | | ??????????????????????# #?????????? | | ??????????????????????# #?????????? | | ??????????????????????# s@#?????????? | | ??????????????????????#Yl #?????????? | | ?????????######??????## ##????????? | | ?????????# = ####### sgg #????????? | | ?????""" # [% ! #????????? | | ?? + T [% t [%* +????????? | | ?????????# w = #????????? | | ?????????# ####### %#????????? | | ?????????## ????????#######????????? | | ??????????#?????????????????????????? | | ????????????????????????????????????? | | ????????????????????????????????????? | | ????????????????????????????????????? | | ????????????????????????????????????? | | ????????????????????????????????????? | | ????????????????????????????????????? | | ????????????????????????????????????? | | ????????????????????????????????????? | | ????????????????????????????????????? | | ????????????????????????????????????? | | ????????????????????????????????????? | | ????????????????????????????????????? | | ????????????????????????????????????? | | ????????????????????????????????????? | | ????????????????????????????????????? | +----------------------------------------------------+ Best States ------------- Heat Dissipation 47 Energy Generation 12 Energy Capacity 265 Matter Stores 300 Matter Capacity 300 Sight Range 16 Robot Scan Range 14 Terrain Scan Density 10 Armor Coverage 150 Resistance: KI 20 Resistance: TH 20 Resistance: EX 20 Resistance: EM 20 Resistance: I 20 Resistance: S 20 Resistance: P 20 Evasion (%) 55 Offensive Hacking 10 Item Schematics ----------------- None Robot Schematics ------------------ None Fabricated ------------ Nothing Alien Tech Used ----------------- None Achievements -------------- None Challenges ------------ None Game ------ Seed LegComponentMediator Manual? 0 Play Time 00:11:21 Cumulative 10.9 hours Start 2024.03.18 @ 19:59:21 End 2024.03.18 @ 20:10:12 Sessions 1 Manual Loads 0 Difficulty Adventurer Special Mode None Game No. 7 Rogue 0 Adventurer 7 Explorer 0 Win Type - Total 0 Types 0/0/0/0/0/0/0/0/0 Lore% 14 Gallery% 19 Achievement% 14 Wizard Run 0 Options --------- Layout 1 ASCII 0 Keyboard 1 Movement Vi Keybinds 0 Fullscreen 1 Font 24/Terminus Map View 50x40 Zoom Use 0% Tactical HUD 0 Map Filters NONE Filters NONE Steam 1 RUN: 46aec9a6-6945-4a6a-b57a-40fbf923ffcb